Workbook

Sheet 农村低保
A1: 西岔镇2025年9月农村低保金发放公示表
A2: 填报单位： | I2: 公示时间：2025年8月22日-2025年8月28日
A3: 序号 | B3: 户主姓名 | C3: 住址 | D3: 低保类别 | E3: 享受人数 | F3: 保障标准 | G3: 9月保障 救助金额 | H3: 持卡人姓名 | I3: 备注
A4: =MAX($A$3:A3)+1 -> 1 | B4: 宁三十生 | C4: 新康村 | D4: 三类 | E4: 4 | F4: 100 | G4: =E4*F4 -> 400 | H4: 宁三十生
A5: =MAX($A$3:A4)+1 -> 2 | B5: 宁明兴 | C5: 新康村 | D5: 三类 | E5: 4 | F5: 100 | G5: 400 | H5: 宁明兴
A6: =MAX($A$3:A5)+1 -> 3 | B6: 陈孟头 | C6: 新康村 | D6: 二类 | E6: 1 | F6: 630 | G6: 630 | H6: 陈孟头
A7: =MAX($A$3:A6)+1 -> 4 | B7: 桑菊先 | C7: 新康村 | D7: 二类 | E7: 1 | F7: 630 | G7: 630 | H7: 鲁志俊
A8: =MAX($A$3:A7)+1 -> 5 | B8: 房高林 | C8: 新康村 | D8: 二类 | E8: 5 | F8: 630 | G8: 3150 | H8: 房高林
A9: =MAX($A$3:A8)+1 -> 6 | B9: 仇忠海 | C9: 新康村 | D9: 一类 | E9: 2 | F9: 700 | G9: 1400 | H9: 仇忠海
A10: =MAX($A$3:A9)+1 -> 7 | B10: 薛许琴 | C10: 新康村 | D10: 二类 | E10: 1 | F10: 630 | G10: 630 | H10: 薛许琴
A11: =MAX($A$3:A10)+1 -> 8 | B11: 韩尖得 | C11: 新康村 | D11: 一类 | E11: 3 | F11: 700 | G11: 2100 | H11: 韩尖得
A12: =MAX($A$3:A11)+1 -> 9 | B12: 李新平 | C12: 新康村 | D12: 二类 | E12: 1 | F12: 630 | G12: =E12*F12 -> 630 | H12: 李新平
A13: =MAX($A$3:A12)+1 -> 10 | B13: 尚来生 | C13: 新康村 | D13: 二类 | E13: 1 | F13: 630 | G13: 630 | H13: 尚来生
A14: =MAX($A$3:A13)+1 -> 11 | B14: 仇平生 | C14: 新康村 | D14: 二类 | E14: 2 | F14: 630 | G14: 1260 | H14: 仇平生
A15: =MAX($A$3:A14)+1 -> 12 | B15: 仇黑黑 | C15: 新康村 | D15: 二类 | E15: 2 | F15: 630 | G15: 1260 | H15: 仇黑黑
A16: =MAX($A$3:A15)+1 -> 13 | B16: 刘清成 | C16: 新康村 | D16: 三类 | E16: 5 | F16: 100 | G16: 500 | H16: 刘清成
A17: =MAX($A$3:A16)+1 -> 14 | B17: 韩新民 | C17: 新康村 | D17: 三类 | E17: 3 | F17: 100 | G17: 300 | H17: 韩剑生
A18: =MAX($A$3:A17)+1 -> 15 | B18: 张革命来 | C18: 新康村 | D18: 三类 | E18: 2 | F18: 100 | G18: 200 | H18: 张革命来
A19: =MAX($A$3:A18)+1 -> 16 | B19: 虎明 | C19: 新康村 | D19: 一类 | E19: 1 | F19: 700 | G19: 700 | H19: 虎明
A20: =MAX($A$3:A19)+1 -> 17 | B20: 杨全红 | C20: 新康村 | D20: 二类 | E20: 5 | F20: 630 | G20: 3150 | H20: 杨全红
A21: =MAX($A$3:A20)+1 -> 18 | B21: 李麦九 | C21: 新康村 | D21: 一类 | E21: 1 | F21: 700 | G21: 700 | H21: 李麦九
A22: =MAX($A$3:A21)+1 -> 19 | B22: 宁四得 | C22: 新康村 | D22: 二类 | E22: 2 | F22: 630 | G22: 1260 | H22: 宁四得
A23: =MAX($A$3:A22)+1 -> 20 | B23: 孔金新宝 | C23: 新康村 | D23: 四类 | E23: 7 | F23: 62 | G23: 434 | H23: 孔金新宝
A24: =MAX($A$3:A23)+1 -> 21 | B24: 白吉措 | C24: 新康村 | D24: 二类 | E24: 4 | F24: 630 | G24: 2520 | H24: 白吉措
A25: =MAX($A$3:A24)+1 -> 22 | B25: 杨兰女 | C25: 新康村 | D25: 二类 | E25: 2 | F25: 630 | G25: 1260 | H25: 曹海龙
A26: =MAX($A$3:A25)+1 -> 23 | B26: 杨九巴 | C26: 新康村 | D26: 二类 | E26: 1 | F26: 630 | G26: 630 | H26: 杨九巴
A27: =MAX($A$3:A26)+1 -> 24 | B27: 李兰交 | C27: 新康村 | D27: 二类 | E27: 7 | F27: 630 | G27: 4410 | H27: 李兰交
A28: =MAX($A$3:A27)+1 -> 25 | B28: 王权龙 | C28: 新康村 | D28: 一类 | E28: 1 | F28: 700 | G28: 700 | H28: 王权龙
A29: =MAX($A$3:A28)+1 -> 26 | B29: 贡宝嘉 | C29: 新康村 | D29: 一类 | E29: 1 | F29: 700 | G29: 700 | H29: 贡宝嘉
A30: =MAX($A$3:A29)+1 -> 27 | B30: 杨四闹 | C30: 新康村 | D30: 二类 | E30: 5 | F30: 630 | G30: 3150 | H30: 杨四闹
A31: =MAX($A$3:A30)+1 -> 28 | B31: 余吉成 | C31: 新康村 | D31: 二类 | E31: 1 | F31: 630 | G31: 630 | H31: 余吉成
A32: =MAX($A$3:A31)+1 -> 29 | B32: 杨长庆 | C32: 新康村 | D32: 二类 | E32: 5 | F32: 630 | G32: 3150 | H32: 杨长庆
A33: =MAX($A$3:A32)+1 -> 30 | B33: 闵次儿族 | C33: 新康村 | D33: 二类 | E33: 2 | F33: 630 | G33: 1260 | H33: 金来义
A34: =MAX($A$3:A33)+1 -> 31 | B34: 张军生 | C34: 新康村 | D34: 一类 | E34: 1 | F34: 700 | G34: 700 | H34: 张军生
A35: =MAX($A$3:A34)+1 -> 32 | B35: 韩百家明 | C35: 新康村 | D35: 三类 | E35: 2 | F35: 100 | G35: 200 | H35: 韩百家明
A36: =MAX($A$3:A35)+1 -> 33 | B36: 韩菊红 | C36: 新康村 | D36: 三类 | E36: 1 | F36: 100 | G36: 100 | H36: 韩菊红
A37: =MAX($A$3:A36)+1 -> 34 | B37: 王先古 | C37: 新康村 | D37: 二类 | E37: 5 | F37: 630 | G37: 3150 | H37: 王先古
A38: =MAX($A$3:A37)+1 -> 35 | B38: 年四斤 | C38: 新康村 | D38: 一类 | E38: 2 | F38: 700 | G38: 1400 | H38: 年四斤
A39: =MAX($A$3:A38)+1 -> 36 | B39: 毛小学 | C39: 新康村 | D39: 二类 | E39: 1 | F39: 630 | G39: 630 | H39: 毛小学
A40: =MAX($A$3:A39)+1 -> 37 | B40: 张永明 | C40: 新康村 | D40: 二类 | E40: 1 | F40: 630 | G40: 630 | H40: 张永明
A41: =MAX($A$3:A40)+1 -> 38 | B41: 尹汉明 | C41: 新康村 | D41: 一类 | E41: 1 | F41: 700 | G41: 700 | H41: 尹汉明
A42: =MAX($A$3:A41)+1 -> 39 | B42: 袁明 | C42: 新康村 | D42: 二类 | E42: 1 | F42: 630 | G42: 630 | H42: 袁明
A43: =MAX($A$3:A42)+1 -> 40 | B43: 李小女 | C43: 新康村 | D43: 一类 | E43: 1 | F43: 700 | G43: 700 | H43: 李小女
A44: =MAX($A$3:A43)+1 -> 41 | B44: 杜民张 | C44: 新康村 | D44: 三类 | E44: 6 | F44: 100 | G44: 600 | H44: 杜民张
A45: =MAX($A$3:A44)+1 -> 42 | B45: 李先爱 | C45: 新康村 | D45: 二类 | E45: 1 | F45: 630 | G45: 630 | H45: 刘文海
A46: =MAX($A$3:A45)+1 -> 43 | B46: 周石石 | C46: 新康村 | D46: 一类 | E46: 1 | F46: 700 | G46: 700 | H46: 周石石
A47: =MAX($A$3:A46)+1 -> 44 | B47: 尹成海 | C47: 新康村 | D47: 三类 | E47: 4 | F47: 100 | G47: 400 | H47: 尹成海
A48: =MAX($A$3:A47)+1 -> 45 | B48: 尹海旺 | C48: 新康村 | D48: 二类 | E48: 3 | F48: 630 | G48: 1890 | H48: 尹海旺
A49: =MAX($A$3:A48)+1 -> 46 | B49: 孔金各 | C49: 新康村 | D49: 二类 | E49: 2 | F49: 630 | G49: 1260 | H49: 孔金各
A50: =MAX($A$3:A49)+1 -> 47 | B50: 尹青成保 | C50: 新康村 | D50: 二类 | E50: 1 | F50: 630 | G50: 630 | H50: 尹青成保
A51: =MAX($A$3:A50)+1 -> 48 | B51: 沈五月生 | C51: 新康村 | D51: 二类 | E51: 1 | F51: 630 | G51: 630 | H51: 沈五月生
A52: =MAX($A$3:A51)+1 -> 49 | B52: 虎六斤 | C52: 新康村 | D52: 二类 | E52: 7 | F52: 630 | G52: 4410 | H52: 虎六斤
A53: =MAX($A$3:A52)+1 -> 50 | B53: 杨海成 | C53: 新康村 | D53: 二类 | E53: 1 | F53: 630 | G53: 630 | H53: 杨海成
A54: =MAX($A$3:A53)+1 -> 51 | B54: 刘代女 | C54: 新康村 | D54: 三类 | E54: 1 | F54: 100 | G54: 100 | H54: 刘代女
A55: =MAX($A$3:A54)+1 -> 52 | B55: 张青朝 | C55: 新康村 | D55: 二类 | E55: 4 | F55: 630 | G55: 2520 | H55: 张青朝
A56: =MAX($A$3:A55)+1 -> 53 | B56: 刘成生 | C56: 新康村 | D56: 二类 | E56: 3 | F56: 630 | G56: 1890 | H56: 刘成生
A57: =MAX($A$3:A56)+1 -> 54 | B57: 张瑞成 | C57: 新康村 | D57: 一类 | E57: 1 | F57: 700 | G57: 700 | H57: 张瑞成
A58: =MAX($A$3:A57)+1 -> 55 | B58: 杨小兵 | C58: 新康村 | D58: 一类 | E58: 1 | F58: 700 | G58: =E58*F58 -> 700 | H58: 杨小兵
A59: =MAX($A$3:A58)+1 -> 56 | B59: 商生保 | C59: 新康村 | D59: 三类 | E59: 2 | F59: 100 | G59: 200 | H59: 商生保
A60: =MAX($A$3:A59)+1 -> 57 | B60: 王干地 | C60: 新康村 | D60: 一类 | E60: 1 | F60: 700 | G60: 700 | H60: 王干地
A61: =MAX($A$3:A60)+1 -> 58 | B61: 谢旦板 | C61: 新康村 | D61: 一类 | E61: 1 | F61: 700 | G61: 700 | H61: 谢旦板
A62: =MAX($A$3:A61)+1 -> 59 | B62: 桑居夫 | C62: 新康村 | D62: 二类 | E62: 3 | F62: 630 | G62: 1890 | H62: 桑居夫
A63: =MAX($A$3:A62)+1 -> 60 | B63: 周新朗 | C63: 新康村 | D63: 三类 | E63: 4 | F63: 100 | G63: 400 | H63: 周新朗
A64: =MAX($A$3:A63)+1 -> 61 | B64: 杨仁恩 | C64: 新康村 | D64: 二类 | E64: 2 | F64: 630 | G64: 1260 | H64: 杨仁恩
A65: =MAX($A$3:A64)+1 -> 62 | B65: 关菊桂 | C65: 新康村 | D65: 一类 | E65: 2 | F65: 700 | G65: 1400 | H65: 关菊桂
A66: =MAX($A$3:A65)+1 -> 63 | B66: 杨厚得 | C66: 新康村 | D66: 二类 | E66: 3 | F66: 630 | G66: 1890 | H66: 杨厚得
A67: =MAX($A$3:A66)+1 -> 64 | B67: 刘吉生 | C67: 新康村 | D67: 二类 | E67: 2 | F67: 630 | G67: 1260 | H67: 刘岳平
A68: =MAX($A$3:A67)+1 -> 65 | B68: 虎利亚 | C68: 新康村 | D68: 三类 | E68: 3 | F68: 100 | G68: 300 | H68: 虎利亚
A69: =MAX($A$3:A68)+1 -> 66 | B69: 黄军平 | C69: 新康村 | D69: 二类 | E69: 4 | F69: 630 | G69: 2520 | H69: 黄军平
A70: =MAX($A$3:A69)+1 -> 67 | B70: 杨茂茂 | C70: 新康村 | D70: 一类 | E70: 3 | F70: 700 | G70: 2100 | H70: 杨茂茂
A71: =MAX($A$3:A70)+1 -> 68 | B71: 王郭成 | C71: 新康村 | D71: 一类 | E71: 1 | F71: 700 | G71: 700 | H71: 王郭成
A72: =MAX($A$3:A71)+1 -> 69 | B72: 何召理 | C72: 新康村 | D72: 二类 | E72: 2 | F72: 630 | G72: 1260 | H72: 何召理
A73: =MAX($A$3:A72)+1 -> 70 | B73: 本先女 | C73: 新康村 | D73: 三类 | E73: 3 | F73: 100 | G73: 300 | H73: 本先女
A74: =MAX($A$3:A73)+1 -> 71 | B74: 孔平仁 | C74: 新康村 | D74: 二类 | E74: 3 | F74: 630 | G74: 1890 | H74: 孔平仁
A75: =MAX($A$3:A74)+1 -> 72 | B75: 孔扎西 | C75: 新康村 | D75: 二类 | E75: 1 | F75: 630 | G75: 630 | H75: 孔本四代
A76: =MAX($A$3:A75)+1 -> 73 | B76: 孔旦儿九 | C76: 新康村 | D76: 一类 | E76: 2 | F76: 700 | G76: 1400 | H76: 孔旦儿九
A77: =MAX($A$3:A76)+1 -> 74 | B77: 石者也措 | C77: 新康村 | D77: 二类 | E77: 1 | F77: 630 | G77: 630 | H77: 尹英西
A78: =MAX($A$3:A77)+1 -> 75 | B78: 赵喜云 | C78: 新康村 | D78: 二类 | E78: 3 | F78: 630 | G78: 1890 | H78: 谈水红
A79: =MAX($A$3:A78)+1 -> 76 | B79: 杨海木草 | C79: 新康村 | D79: 二类 | E79: 1 | F79: 630 | G79: 630 | H79: 杨海木草
A80: =MAX($A$3:A79)+1 -> 77 | B80: 石江平 | C80: 新康村 | D80: 三类 | E80: 7 | F80: 100 | G80: 700 | H80: 石江平
A81: =MAX($A$3:A80)+1 -> 78 | B81: 韩战军 | C81: 新康村 | D81: 三类 | E81: 6 | F81: 100 | G81: 600 | H81: 韩战军
A82: =MAX($A$3:A81)+1 -> 79 | B82: 尚惠庆 | C82: 新康村 | D82: 二类 | E82: 1 | F82: 630 | G82: 630 | H82: 姚正合
A83: =MAX($A$3:A82)+1 -> 80 | B83: 王草草 | C83: 新康村 | D83: 一类 | E83: 1 | F83: 700 | G83: 700 | H83: 王草草
A84: =MAX($A$3:A83)+1 -> 81 | B84: 薛小军 | C84: 新康村 | D84: 一类 | E84: 1 | F84: 700 | G84: 700 | H84: 薛小军
A85: =MAX($A$3:A84)+1 -> 82 | B85: 韩彤 | C85: 新康村 | D85: 三类 | E85: 4 | F85: 100 | G85: 400 | H85: 韩彤
A86: =MAX($A$3:A85)+1 -> 83 | B86: 韩安全 | C86: 新康村 | D86: 二类 | E86: 1 | F86: 630 | G86: 630 | H86: 韩安全
A87: =MAX($A$3:A86)+1 -> 84 | B87: 杨看能 | C87: 新康村 | D87: 二类 | E87: 6 | F87: 630 | G87: 3780 | H87: 杨看能
A88: =MAX($A$3:A87)+1 -> 85 | B88: 余白玛仁增 | C88: 新康村 | D88: 三类 | E88: 4 | F88: 100 | G88: 400 | H88: 余白玛仁增
A89: =MAX($A$3:A88)+1 -> 86 | B89: 余下拉 | C89: 新康村 | D89: 二类 | E89: 1 | F89: 630 | G89: 630 | H89: 余下拉
A90: =MAX($A$3:A89)+1 -> 87 | B90: 金青莲 | C90: 新康村 | D90: 二类 | E90: 6 | F90: 630 | G90: 3780 | H90: 金青莲
A91: =MAX($A$3:A90)+1 -> 88 | B91: 余冬慧 | C91: 新康村 | D91: 一类 | E91: 1 | F91: 700 | G91: 700 | H91: 余洋权
A92: =MAX($A$3:A91)+1 -> 89 | B92: 仇高兴 | C92: 新康村 | D92: 二类 | E92: 1 | F92: 630 | G92: =E92*F92 -> 630 | H92: 仇高兴
B93: 仇尖娃 | C93: 新康村 | D93: 二类 | E93: 1 | F93: 630 | G93: 630 | H93: 仇尖娃
A94: =MAX($A$3:A93)+1 -> 90 | B94: 杨桑海儿 | C94: 新康村 | D94: 一类 | E94: 1 | F94: 700 | G94: 700 | H94: 杨桑海儿
A95: =MAX($A$3:A94)+1 -> 91 | B95: 金长生 | C95: 新康村 | D95: 二类 | E95: 5 | F95: 630 | G95: 3150 | H95: 金长生
A96: =MAX($A$3:A95)+1 -> 92 | B96: 虎金才 | C96: 新康村 | D96: 二类 | E96: 6 | F96: 630 | G96: 3780 | H96: 虎金才
A97: =MAX($A$3:A96)+1 -> 93 | B97: 李那木切 | C97: 新康村 | D97: 二类 | E97: 4 | F97: 630 | G97: 2520 | H97: 李那木切
A98: =MAX($A$3:A97)+1 -> 94 | B98: 韩文先 | C98: 新康村 | D98: 二类 | E98: 3 | F98: 630 | G98: 1890 | H98: 韩文先
A99: =MAX($A$3:A98)+1 -> 95 | B99: 虎二权 | C99: 新康村 | D99: 二类 | E99: 6 | F99: 630 | G99: 3780 | H99: 虎二权
A100: =MAX($A$3:A99)+1 -> 96 | B100: 虎东霞 | C100: 新康村 | D100: 二类 | E100: 4 | F100: 630 | G100: 2520 | H100: 虎东霞
A101: =MAX($A$3:A100)+1 -> 97 | B101: 王加面 | C101: 新康村 | D101: 一类 | E101: 1 | F101: 700 | G101: 700 | H101: 王先拉
A102: =MAX($A$3:A101)+1 -> 98 | B102: 张来平 | C102: 新康村 | D102: 一类 | E102: 3 | F102: 700 | G102: 2100 | H102: 张来平
A103: =MAX($A$3:A102)+1 -> 99 | B103: 韩天宁 | C103: 新康村 | D103: 一类 | E103: 1 | F103: 700 | G103: 700 | H103: 韩天宁
A104: =MAX($A$3:A103)+1 -> 100 | B104: 本严知九 | C104: 新康村 | D104: 一类 | E104: 1 | F104: 700 | G104: 700 | H104: 本严知九
A105: =MAX($A$3:A104)+1 -> 101 | B105: 桑红琴 | C105: 新康村 | D105: 一类 | E105: 2 | F105: 700 | G105: 1400 | H105: 桑红琴
A106: =MAX($A$3:A105)+1 -> 102 | B106: 杨许汉 | C106: 新康村 | D106: 二类 | E106: 2 | F106: 630 | G106: 1260 | H106: 杨许汉
A107: =MAX($A$3:A106)+1 -> 103 | B107: 王开 | C107: 新康村 | D107: 二类 | E107: 4 | F107: 630 | G107: 2520 | H107: 王开
A108: =MAX($A$3:A107)+1 -> 104 | B108: 王娄九 | C108: 新康村 | D108: 一类 | E108: 1 | F108: 700 | G108: 700 | H108: 王刚杰凑
A109: =MAX($A$3:A108)+1 -> 105 | B109: 本旦兰九 | C109: 新康村 | D109: 一类 | E109: 1 | F109: 700 | G109: 700 | H109: 本旦兰九
A110: =MAX($A$3:A109)+1 -> 106 | B110: 韩尖成 | C110: 新康村 | D110: 二类 | E110: 2 | F110: 630 | G110: 1260 | H110: 韩尖成
A111: =MAX($A$3:A110)+1 -> 107 | B111: 杨次大交 | C111: 新康村 | D111: 二类 | E111: 2 | F111: 630 | G111: 1260 | H111: 杨次大交
A112: =MAX($A$3:A111)+1 -> 108 | B112: 房海生 | C112: 新康村 | D112: 二类 | E112: 3 | F112: 630 | G112: 1890 | H112: 房海生
A113: =MAX($A$3:A112)+1 -> 109 | B113: 金干衣 | C113: 新康村 | D113: 一类 | E113: 4 | F113: 700 | G113: 2800 | H113: 金干衣
A114: =MAX($A$3:A113)+1 -> 110 | B114: 孔周家代 | C114: 新康村 | D114: 一类 | E114: 2 | F114: 700 | G114: 1400 | H114: 孔周家代
A115: =MAX($A$3:A114)+1 -> 111 | B115: 雷小林 | C115: 新康村 | D115: 二类 | E115: 2 | F115: 630 | G115: 1260 | H115: 雷小林
A116: =MAX($A$3:A115)+1 -> 112 | B116: 余猪娃 | C116: 新康村 | D116: 二类 | E116: 1 | F116: 630 | G116: 630 | H116: 金加义
A117: =MAX($A$3:A116)+1 -> 113 | B117: 虎灵令 | C117: 新康村 | D117: 三类 | E117: 2 | F117: 100 | G117: 200 | H117: 虎灵令
A118: =MAX($A$3:A117)+1 -> 114 | B118: 孔忠平 | C118: 新康村 | D118: 二类 | E118: 6 | F118: 630 | G118: 3780 | H118: 孔忠平
A119: =MAX($A$3:A118)+1 -> 115 | B119: 金闹主 | C119: 新康村 | D119: 二类 | E119: 6 | F119: 630 | G119: 3780 | H119: 金闹主
A120: =MAX($A$3:A119)+1 -> 116 | B120: 高多主 | C120: 新康村 | D120: 二类 | E120: 3 | F120: 630 | G120: 1890 | H120: 高多主
A121: =MAX($A$3:A120)+1 -> 117 | B121: 高代成 | C121: 新康村 | D121: 二类 | E121: 4 | F121: 630 | G121: 2520 | H121: 高代成
A122: =MAX($A$3:A121)+1 -> 118 | B122: 杨贵平 | C122: 新康村 | D122: 二类 | E122: 2 | F122: 630 | G122: 1260 | H122: 杨贵平
A123: =MAX($A$3:A122)+1 -> 119 | B123: 杨狗娃 | C123: 新康村 | D123: 二类 | E123: 2 | F123: 630 | G123: 1260 | H123: 杨狗娃
A124: =MAX($A$3:A123)+1 -> 120 | B124: 孔当当喜 | C124: 新康村 | D124: 三类 | E124: 8 | F124: 100 | G124: 800 | H124: 孔当当喜
A125: =MAX($A$3:A124)+1 -> 121 | B125: 苏先主 | C125: 新康村 | D125: 二类 | E125: 1 | F125: 630 | G125: =E125*F125 -> 630 | H125: 苏先主
A126: =MAX($A$3:A125)+1 -> 122 | B126: 李浩婷 | C126: 新康村 | D126: 二类 | E126: 1 | F126: 630 | G126: 630 | H126: 李次儿
A127: =MAX($A$3:A126)+1 -> 123 | B127: 房光明 | C127: 新康村 | D127: 二类 | E127: 1 | F127: 630 | G127: 630 | H127: 房光明
A128: =MAX($A$3:A127)+1 -> 124 | B128: 仇高财 | C128: 新康村 | D128: 二类 | E128: 1 | F128: 630 | G128: 630 | H128: 仇高财
A129: =MAX($A$3:A128)+1 -> 125 | B129: 罗忠孝 | C129: 新康村 | D129: 三类 | E129: 3 | F129: 100 | G129: 300 | H129: 罗忠孝
A130: =MAX($A$3:A129)+1 -> 126 | B130: 虎照照 | C130: 新康村 | D130: 二类 | E130: 1 | F130: 630 | G130: 630 | H130: 虎照照
A131: =MAX($A$3:A130)+1 -> 127 | B131: 本强兵 | C131: 新康村 | D131: 二类 | E131: 6 | F131: 630 | G131: 3780 | H131: 本强兵
A132: =MAX($A$3:A131)+1 -> 128 | B132: 张刘艳 | C132: 新康村 | D132: 三类 | E132: 5 | F132: 100 | G132: 500 | H132: 张刘艳
A133: =MAX($A$3:A132)+1 -> 129 | B133: 刘宝贵 | C133: 新康村 | D133: 一类 | E133: 1 | F133: 700 | G133: 700 | H133: 刘宝贵
A134: =MAX($A$3:A133)+1 -> 130 | B134: 张军明 | C134: 新康村 | D134: 二类 | E134: 1 | F134: 630 | G134: 630 | H134: 张军军
A135: =MAX($A$3:A134)+1 -> 131 | B135: 杨金兰 | C135: 新康村 | D135: 二类 | E135: 1 | F135: 630 | G135: 630 | H135: 李登平
A136: =MAX($A$3:A135)+1 -> 132 | B136: 韩小童 | C136: 新康村 | D136: 二类 | E136: 1 | F136: 630 | G136: 630 | H136: 韩小童
A137: =MAX($A$3:A136)+1 -> 133 | B137: 申青生保 | C137: 新康村 | D137: 二类 | E137: 3 | F137: 630 | G137: 1890 | H137: 申青生保
A138: =MAX($A$3:A137)+1 -> 134 | B138: 王老大 | C138: 新康村 | D138: 二类 | E138: 1 | F138: 630 | G138: 630 | H138: 王生
A139: =MAX($A$3:A138)+1 -> 135 | B139: 余永果 | C139: 新康村 | D139: 三类 | E139: 6 | F139: 100 | G139: 600 | H139: 余永果
A140: =MAX($A$3:A139)+1 -> 136 | B140: 严应朝 | C140: 新康村 | D140: 三类 | E140: 6 | F140: 100 | G140: 600 | H140: 严应朝
A141: =MAX($A$3:A140)+1 -> 137 | B141: 王小玲 | C141: 新康村 | D141: 二类 | E141: 1 | F141: 630 | G141: 630 | H141: 王小玲
A142: =MAX($A$3:A141)+1 -> 138 | B142: 杨成许 | C142: 新康村 | D142: 二类 | E142: 1 | F142: 630 | G142: 630 | H142: 杨成许
A143: =MAX($A$3:A142)+1 -> 139 | B143: 袁永安 | C143: 新康村 | D143: 一类 | E143: 1 | F143: 700 | G143: 700 | H143: 袁永安
A144: =MAX($A$3:A143)+1 -> 140 | B144: 房米阳 | C144: 新康村 | D144: 一类 | E144: 1 | F144: 700 | G144: 700 | H144: 桑林兰
A145: =MAX($A$3:A144)+1 -> 141 | B145: 王卷方 | C145: 新康村 | D145: 二类 | E145: 1 | F145: 630 | G145: 630 | H145: 王卷方
A146: =MAX($A$3:A145)+1 -> 142 | B146: 刘全兴 | C146: 新康村 | D146: 二类 | E146: 1 | F146: 630 | G146: 630 | H146: 刘全兴
A147: =MAX($A$3:A146)+1 -> 143 | B147: 虎双成 | C147: 新康村 | D147: 二类 | E147: 2 | F147: 630 | G147: =E147*F147 -> 1260 | H147: 虎双成
A148: 村干部签字： | E148: 监委会主任及意见： | H148: 监委会主任电话：

Sheet 农村特困
A1: 西岔镇2025年9月份农村特困供养金发放公示表
A2: 填报单位： | H2: 公示时间：2025年8月22日-2025年8月28日
A3: 序号 | B3: 所在镇 （中心社区） | C3: 村（社区） | D3: 供养人姓名 | E3: 性别 | F3: 享受人数 | G3: 自理能力情况 | H3: 月发放标准/元 | I3: 合计保障金额/元 | J3: 帐户姓名 | K3: 备注
A4: 1 | B4: 西岔镇 | C4: 新康村 | D4: 尚瓜子 | E4: 女 | F4: 1 | G4: 部分丧失 | H4: 1196 | I4: =H4*F4*1*1 -> 1196 | J4: 尚瓜子 | K4: 2022.4新增
A5: 2 | B5: 西岔镇 | C5: 新康村 | D5: 虎青德 | E5: 男 | F5: 1 | G5: 全自理 | H5: 1196 | I5: 1196 | J5: 虎青德 | K5: 2022.4转入
A6: 3 | B6: 西岔镇 | C6: 新康村 | D6: 苏青 | E6: 男 | F6: 1 | G6: 全自理 | H6: 1196 | I6: 1196 | J6: 苏青 | K6: 2022.4转入
A7: 4 | B7: 西岔镇 | C7: 新康村 | D7: 刘社各 | E7: 男 | F7: 2 | G7: 全自理 | H7: 1196 | I7: 2392 | J7: 刘社各 | K7: 2022.6新增
A8: 5 | B8: 西岔镇 | C8: 新康村 | D8: 韩福奎 | E8: 男 | F8: 1 | G8: 全自理 | H8: 1196 | I8: 1196 | J8: 韩福奎 | K8: 2022.8新增
A9: 6 | B9: 西岔镇 | C9: 新康村 | D9: 薛财林 | E9: 男 | F9: 1 | G9: 全自理 | H9: 1196 | I9: 1196 | J9: 薛财林 | K9: 2022年第五批 4月转入
A10: 7 | B10: 西岔镇 | C10: 新康村 | D10: 李马巴代 | E10: 男 | F10: 1 | G10: 全自理 | H10: 1196 | I10: 1196 | J10: 李马巴代 | K10: 2023.6月新增
A11: 8 | B11: 西岔镇 | C11: 新康村 | D11: 刘平福 | E11: 男 | F11: 1 | G11: 全自理 | H11: 1196 | I11: 1196 | J11: 刘平福 | K11: 2023.6月新增
A12: 9 | B12: 西岔镇 | C12: 新康村 | D12: 杨茂成 | E12: 男 | F12: 1 | G12: 全自理 | H12: 1196 | I12: 1196 | J12: 杨茂成 | K12: 2023.6月新增
A13: 10 | B13: 西岔镇 | C13: 新康村 | D13: 孟兴 | E13: 男 | F13: 2 | G13: 全自理 | H13: 1196 | I13: 2392 | J13: 孟兴 | K13: 2023.6月新增
A14: 11 | B14: 西岔镇 | C14: 新康村 | D14: 虎吉生 | E14: 男 | F14: 2 | G14: 全自理 | H14: 1196 | I14: 2392 | J14: 虎吉生 | K14: 2023.6月新增
A15: 12 | B15: 西岔镇 | C15: 新康村 | D15: 李宝 | E15: 男 | F15: 2 | G15: 全自理 | H15: 1196 | I15: 2392 | J15: 李宝 | K15: 2023.7月新增
A16: 13 | B16: 西岔镇 | C16: 新康村 | D16: 王云庆 | E16: 女 | F16: 1 | G16: 全自理 | H16: 1196 | I16: 1196 | J16: 王云庆 | K16: 2022年第四批 7月新增
A17: 14 | B17: 西岔镇 | C17: 新康村 | D17: 雷丁丁 | E17: 男 | F17: 1 | G17: 全自理 | H17: 1196 | I17: 1196 | J17: 雷丁丁 | K17: 2022年第四批 7月新增
A18: 15 | B18: 西岔镇 | C18: 新康村 | D18: 李高来 | E18: 男 | F18: 1 | G18: 全自理 | H18: 1196 | I18: 1196 | J18: 李高来 | K18: 2022年第五批 7月转入
A19: 16 | B19: 西岔镇 | C19: 新康村 | D19: 虎生 | E19: 男 | F19: 1 | G19: 全自理 | H19: 1196 | I19: 1196 | J19: 虎生 | K19: 2023.9月新增
A20: 17 | B20: 西岔镇 | C20: 新康村 | D20: 才占义 | E20: 男 | F20: 1 | G20: 全自理 | H20: 1196 | I20: 1196 | J20: 才占义 | K20: 2022年第十批 10月转入
A21: 18 | B21: 西岔镇 | C21: 新康村 | D21: 薛知会 | E21: 男 | F21: 1 | G21: 全自理 | H21: 1196 | I21: 1196 | J21: 薛知会 | K21: 2024.1月新增
A22: 19 | B22: 西岔镇 | C22: 新康村 | D22: 仇三兴 | E22: 男 | F22: 1 | G22: 全自理 | H22: 1196 | I22: 1196 | J22: 仇三兴 | K22: 2024.1月新增
A23: 20 | B23: 西岔镇 | C23: 新康村 | D23: 尹热舟 | E23: 男 | F23: 1 | G23: 全自理 | H23: 1196 | I23: 1196 | J23: 尹热舟 | K23: 2024.4月新增
A24: 21 | B24: 西岔镇 | C24: 新康村 | D24: 杨成龙 | E24: 男 | F24: 1 | G24: 全自理 | H24: 1196 | I24: 1196 | J24: 杨成龙 | K24: 2024.4月新增
A25: 22 | B25: 西岔镇 | C25: 新康村 | D25: 韩龙生 | E25: 男 | F25: 1 | G25: 全自理 | H25: 1196 | I25: 1196 | J25: 韩龙生 | K25: 2024.4月新增
A26: 23 | B26: 西岔镇 | C26: 新康村 | D26: 杨田贵 | E26: 男 | F26: 1 | G26: 全自理 | H26: 1196 | I26: 1196 | J26: 杨田贵 | K26: 2024.4月新增
A27: 24 | B27: 西岔镇 | C27: 新康村 | D27: 尚全平 | E27: 男 | F27: 1 | G27: 全自理 | H27: 1196 | I27: 1196 | J27: 尚全平 | K27: 2024.4月新增
A28: 25 | B28: 西岔镇 | C28: 新康村 | D28: 周学生 | E28: 男 | F28: 1 | G28: 全自理 | H28: 1196 | I28: 1196 | J28: 周学生 | K28: 2024.4月新增
A29: 26 | B29: 西岔镇 | C29: 新康村 | D29: 唐生生 | E29: 男 | F29: 1 | G29: 全自理 | H29: 1196 | I29: 1196 | J29: 唐生生 | K29: 2024.6月新增
A30: 27 | B30: 西岔镇 | C30: 新康村 | D30: 罗效忠 | E30: 男 | F30: 1 | G30: 全自理 | H30: 1196 | I30: 1196 | J30: 罗效忠 | K30: 2024.7月新增
A31: 28 | B31: 西岔镇 | C31: 新康村 | D31: 尹英西 | E31: 男 | F31: 2 | G31: 全自理 | H31: 1196 | I31: 2392 | J31: 尹英西 | K31: 2024.7月新增
A32: 29 | B32: 西岔镇 | C32: 新康村 | D32: 虎高义 | E32: 男 | F32: 1 | G32: 全自理 | H32: 1196 | I32: 1196 | J32: 虎高义 | K32: 2025.1月新增
A33: 30 | B33: 西岔镇 | C33: 新康村 | D33: 本熊保 | E33: 男 | F33: 1 | G33: 全自理 | H33: 1196 | I33: 1196 | J33: 本熊保 | K33: 2025.4月新增
A34: 31 | B34: 西岔镇 | C34: 新康村 | D34: 周秀来 | E34: 女 | F34: 1 | G34: 全自理 | H34: 1196 | I34: 1196 | J34: 周秀来 | K34: 2025.4月新增
A35: 32 | B35: 西岔镇 | C35: 新康村 | D35: 周海林 | E35: 男 | F35: 1 | G35: 全自理 | H35: 1196 | I35: =H35*F35*1*1 -> 1196 | J35: 周海林 | K35: 2025.6月新增
A36: 33 | B36: 西岔镇 | C36: 新康村 | D36: 李青生 | E36: 男 | F36: 1 | G36: 全自理 | H36: 1196 | I36: 1196 | J36: 李青生 | K36: 2025.6月新增
A37: 34 | B37: 西岔镇 | C37: 新康村 | D37: 韩根子成 | E37: 男 | F37: 1 | G37: 全自理 | H37: 1196 | I37: 1196 | J37: 韩根子成 | K37: 2025.6月新增
A38: 35 | B38: 西岔镇 | C38: 新康村 | D38: 沈田夫 | E38: 男 | F38: 2 | G38: 全自理 | H38: 1196 | I38: 2392 | J38: 沈田夫 | K38: 2025.6月新增
A39: 36 | B39: 西岔镇 | C39: 新康村 | D39: 刘岳平 | E39: 男 | F39: 1 | G39: 全自理 | H39: 1196 | I39: 1196 | J39: 刘岳平 | K39: 2025.6月新增
A40: 37 | B40: 西岔镇 | C40: 新康村 | D40: 孔热子漫 | E40: 女 | F40: 1 | G40: 全自理 | H40: 1196 | I40: 1196 | J40: 孔热子漫 | K40: 2025.6月新增
A41: 村干部签字： | E41: 监委会主任及意见： | G41: 监委会主任电话： | I41: 镇监督电话：5881227

Sheet 重残
A1: 西岔镇2025年9月份重度残疾人护理补贴发放公示表
A2: 填报单位： | H2: 公示时间：2025年8月22日-2025年8月28日
A3: 序号 | B3: 姓名 | C3: 性别 | D3: 残疾 类别 | E3: 残疾 等级 | F3: 家庭 住址 | G3: 享受低保类别 | H3: 是否享受困难残疾人生活补贴 | I3: 户名 | J3: 9月发放金额 | K3: 备注
A4: 1 | B4: 韩小林 | C4: 女 | D4: 肢体 | E4: 二级 | F4: 新康村 | G4: 农村低保三类 | H4: 是 | I4: 韩小林 | J4: 60
A5: 2 | B5: 宁明兴 | C5: 男 | D5: 肢体 | E5: 二级 | F5: 新康村 | G5: 农村低保三类 | H5: 是 | I5: 宁明兴 | J5: 60
A6: 3 | B6: 刘永林 | C6: 女 | D6: 听力 | E6: 二级 | F6: 新康村 | G6: 农村低保三类 | H6: 是 | I6: 刘永林 | J6: 60
A7: 4 | B7: 刘长海 | C7: 男 | D7: 肢体 | E7: 二级 | F7: 新康村 | H7: 否 | I7: 刘长海 | J7: 60
A8: 5 | B8: 虎羊清 | C8: 女 | D8: 听力 | E8: 一级 | F8: 新康村 | H8: 否 | I8: 虎羊清 | J8: 60
A9: 6 | B9: 韩丫子 | C9: 女 | D9: 听力 | E9: 二级 | F9: 新康村 | H9: 否 | I9: 韩丫子 | J9: 60
A10: 7 | B10: 鲁杜苟代 | C10: 男 | D10: 肢体 | E10: 一级 | F10: 新康村 | H10: 否 | I10: 鲁杜苟代 | J10: 110
A11: 8 | B11: 房高林 | C11: 男 | D11: 肢体 | E11: 二级 | F11: 新康村 | G11: 农村低保二类 | H11: 是 | I11: 房高林 | J11: 60
A12: 9 | B12: 谈彩霞 | C12: 女 | D12: 肢体 | E12: 二级 | F12: 新康村 | G12: 农村低保二类 | H12: 是 | I12: 房高林 | J12: 60
A13: 10 | B13: 薛许琴 | C13: 女 | D13: 多重 | E13: 二级 | F13: 新康村 | G13: 农村低保二类 | H13: 是 | I13: 薛许琴 | J13: 60
A14: 11 | B14: 仇忠海 | C14: 男 | D14: 多重 | E14: 二级 | F14: 新康村 | G14: 农村低保一类 | H14: 是 | I14: 仇忠海 | J14: 60
A15: 12 | B15: 韩爱芳 | C15: 女 | D15: 多重 | E15: 二级 | F15: 新康村 | H15: 否 | I15: 韩爱芳 | J15: 60
A16: 13 | B16: 龚婷萱 | C16: 女 | D16: 肢体 | E16: 二级 | F16: 新康村 | H16: 否 | I16: 龚婷萱 | J16: 60
A17: 14 | B17: 王权龙 | C17: 男 | D17: 肢体 | E17: 二级 | F17: 新康村 | G17: 农村低保一类 | H17: 是 | I17: 王权龙 | J17: 60
A18: 15 | B18: 张干娃 | C18: 女 | D18: 肢体 | E18: 二级 | F18: 新康村 | H18: 否 | I18: 张干娃 | J18: 60
A19: 16 | B19: 孔艺豪 | C19: 男 | D19: 智力 | E19: 一级 | F19: 新康村 | G19: 农村低保四类 | H19: 是 | I19: 孔艺豪 | J19: 110
A20: 17 | B20: 杨九巴 | C20: 男 | D20: 听力 | E20: 二级 | F20: 新康村 | G20: 农村低保二类 | H20: 是 | I20: 杨九巴 | J20: 60
A21: 18 | B21: 张正斌 | C21: 男 | D21: 多重 | E21: 一级 | F21: 新康村 | H21: 否 | I21: 张正斌 | J21: 60
A22: 19 | B22: 虎满云 | C22: 女 | D22: 多重 | E22: 一级 | F22: 新康村 | H22: 否 | I22: 虎满云 | J22: 60
A23: 20 | B23: 张奂平 | C23: 男 | D23: 肢体 | E23: 二级 | F23: 新康村 | H23: 否 | I23: 张奂平 | J23: 60
A24: 21 | B24: 杨小兵 | C24: 男 | D24: 多重 | E24: 二级 | F24: 新康村 | G24: 农村低保一类 | H24: 是 | I24: 杨小兵 | J24: 110
A25: 22 | B25: 张爱莲 | C25: 女 | D25: 听力 | E25: 一级 | F25: 新康村 | H25: 否 | I25: 张爱莲 | J25: 60
A26: 23 | B26: 房光明 | C26: 男 | D26: 听力 | E26: 二级 | F26: 新康村 | G26: 农村低保二类 | H26: 是 | I26: 房光明 | J26: 60
A27: 24 | B27: 梁六代 | C27: 男 | D27: 肢体 | E27: 一级 | F27: 新康村 | H27: 否 | I27: 梁六代 | J27: 110
A28: 25 | B28: 王出女 | C28: 女 | D28: 多重 | E28: 二级 | F28: 新康村 | H28: 否 | I28: 王出女 | J28: 60
A29: 26 | B29: 韩百条 | C29: 女 | D29: 多重 | E29: 一级 | F29: 新康村 | G29: 农村低保二类 | H29: 是 | I29: 宁四得 | J29: 60
A30: 27 | B30: 杨兰女 | C30: 女 | D30: 多重 | E30: 二级 | F30: 新康村 | G30: 农村低保三类 | H30: 是 | I30: 杨兰女 | J30: 60
A31: 28 | B31: 虎女 | C31: 女 | D31: 视力 | E31: 二级 | F31: 新康村 | H31: 否 | I31: 虎女 | J31: 60
A32: 29 | B32: 韩新才 | C32: 男 | D32: 肢体 | E32: 二级 | F32: 新康村 | G32: 城市低保 | H32: 是 | I32: 韩新才 | J32: 60
A33: 30 | B33: 刘海林 | C33: 女 | D33: 多重 | E33: 二级 | F33: 新康村 | H33: 否 | I33: 刘海林 | J33: 60
A34: 31 | B34: 杨包包 | C34: 男 | D34: 多重 | E34: 二级 | F34: 新康村 | H34: 否 | I34: 杨包包 | J34: 60
A35: 32 | B35: 杨永祥 | C35: 男 | D35: 肢体 | E35: 二级 | F35: 新康村 | H35: 否 | I35: 杨永祥 | J35: 60
A36: 33 | B36: 郭芳各 | C36: 女 | D36: 精神 | E36: 二级 | F36: 新康村 | H36: 否 | I36: 郭芳各 | J36: 110
A37: 34 | B37: 唐水生 | C37: 男 | D37: 听力 | E37: 二级 | F37: 新康村 | H37: 否 | I37: 唐水生 | J37: 60
A38: 35 | B38: 贡宝嘉 | C38: 男 | D38: 肢体 | E38: 一级 | F38: 新康村 | G38: 农村低保一类 | H38: 是 | I38: 贡宝嘉 | J38: 110
A39: 36 | B39: 房月勤 | C39: 女 | D39: 听力 | E39: 二级 | F39: 新康村 | H39: 否 | I39: 房月勤 | J39: 60
A40: 37 | B40: 陈丑丑 | C40: 男 | D40: 多重 | E40: 一级 | F40: 新康村 | H40: 否 | I40: 陈丑丑 | J40: 110
A41: 38 | B41: 宁温博 | C41: 男 | D41: 智力 | E41: 二级 | F41: 新康村 | H41: 否 | I41: 宁忠平 | J41: 110
A42: 39 | B42: 邱玉生 | C42: 男 | D42: 听力 | E42: 一级 | F42: 新康村 | H42: 否 | I42: 邱玉生 | J42: 60
A43: 40 | B43: 李平平 | C43: 女 | D43: 听力 | E43: 一级 | F43: 新康村 | H43: 否 | I43: 李平平 | J43: 60
A44: 41 | B44: 陈刘生成 | C44: 男 | D44: 听力 | E44: 一级 | F44: 新康村 | H44: 否 | I44: 陈刘生成 | J44: 60
A45: 42 | B45: 张五梅 | C45: 女 | D45: 听力 | E45: 二级 | F45: 新康村 | G45: 农村低保三类 | H45: 是 | I45: 张五梅 | J45: 60
A46: 43 | B46: 石永成 | C46: 男 | D46: 听力 | E46: 二级 | F46: 新康村 | G46: 农村低保三类 | H46: 是 | I46: 石永成 | J46: 60
A47: 44 | B47: 毛小学 | C47: 男 | D47: 多重 | E47: 一级 | F47: 新康村 | G47: 农村低保二类 | H47: 是 | I47: 毛小学 | J47: 60
A48: 45 | B48: 谢开来曼 | C48: 女 | D48: 多重 | E48: 二级 | F48: 新康村 | H48: 否 | I48: 谢开来曼 | J48: 60
A49: 46 | B49: 张军生 | C49: 男 | D49: 肢体 | E49: 二级 | F49: 新康村 | G49: 农村低保一类 | H49: 是 | I49: 张军生 | J49: 60
A50: 47 | B50: 金占西 | C50: 男 | D50: 多重 | E50: 二级 | F50: 新康村 | G50: 农村低保二类 | H50: 是 | I50: 金占西 | J50: 60
A51: 48 | B51: 李小女 | C51: 女 | D51: 精神 | E51: 二级 | F51: 新康村 | G51: 农村低保一类 | H51: 是 | I51: 李小女 | J51: 110
A52: 49 | B52: 闵次儿族 | C52: 女 | D52: 视力 | E52: 二级 | F52: 新康村 | G52: 农村低保二类 | H52: 是 | I52: 闵次儿族 | J52: 60
A53: 50 | B53: 尹代成 | C53: 男 | D53: 多重 | E53: 二级 | F53: 新康村 | H53: 否 | I53: 尹代成 | J53: 60
A54: 51 | B54: 张马青 | C54: 女 | D54: 精神 | E54: 二级 | F54: 新康村 | G54: 农村低保二类 | H54: 是 | I54: 张马青 | J54: 110
A55: 52 | B55: 韩菊红 | C55: 男 | D55: 多重 | E55: 一级 | F55: 新康村 | G55: 农村低保三类 | H55: 是 | I55: 韩菊红 | J55: 110
A56: 53 | B56: 袁虎寿 | C56: 男 | D56: 视力 | E56: 二级 | F56: 新康村 | H56: 否 | I56: 袁虎寿 | J56: 60
A57: 54 | B57: 虎自豪 | C57: 男 | D57: 肢体 | E57: 一级 | F57: 新康村 | G57: 农村低保一类 | H57: 是 | I57: 虎自豪 | J57: 110
A58: 55 | B58: 王先国 | C58: 女 | D58: 视力 | E58: 二级 | F58: 新康村 | G58: 农村低保一类 | H58: 是 | I58: 王先国 | J58: 60
A59: 56 | B59: 李爱明 | C59: 女 | D59: 听力 | E59: 二级 | F59: 新康村 | H59: 否 | I59: 李爱明 | J59: 60
A60: 57 | B60: 余冬慧 | C60: 女 | D60: 多重 | E60: 一级 | F60: 新康村 | G60: 农村低保一类 | H60: 是 | I60: 余洋权 | J60: 110
A61: 58 | B61: 李先爱 | C61: 女 | D61: 听力 | E61: 二级 | F61: 新康村 | H61: 否 | I61: 李先爱 | J61: 60
A62: 59 | B62: 谈香巴交 | C62: 男 | D62: 多重 | E62: 二级 | F62: 新康村 | H62: 否 | I62: 谈香巴交 | J62: 60
A63: 60 | B63: 谈努曼 | C63: 女 | D63: 视力 | E63: 二级 | F63: 新康村 | H63: 否 | I63: 谈努曼 | J63: 60
A64: 61 | B64: 李愁得交 | C64: 男 | D64: 多重 | E64: 一级 | F64: 新康村 | H64: 否 | I64: 李愁得交 | J64: 110
A65: 62 | B65: 杨拉交 | C65: 男 | D65: 多重 | E65: 二级 | F65: 新康村 | H65: 否 | I65: 杨拉交 | J65: 60
A66: 63 | B66: 王会青 | C66: 女 | D66: 肢体 | E66: 二级 | F66: 新康村 | H66: 否 | I66: 王会青 | J66: 60
A67: 64 | B67: 薛井龙保 | C67: 男 | D67: 肢体 | E67: 二级 | F67: 新康村 | H67: 否 | I67: 薛井龙保 | J67: 60
A68: 65 | B68: 任血木 | C68: 女 | D68: 听力 | E68: 二级 | F68: 新康村 | H68: 否 | I68: 任血木 | J68: 60
A69: 66 | B69: 王忠明 | C69: 男 | D69: 肢体 | E69: 二级 | F69: 新康村 | H69: 否 | I69: 王忠明 | J69: 60
A70: 67 | B70: 谈彩红 | C70: 女 | D70: 多重 | E70: 一级 | F70: 新康村 | G70: 农村低保二类 | H70: 是 | I70: 谈彩红 | J70: 60
A71: 68 | B71: 王伟芳 | C71: 女 | D71: 视力 | E71: 二级 | F71: 新康村 | H71: 否 | I71: 王伟芳 | J71: 60
A72: 69 | B72: 谢旦板 | C72: 男 | D72: 多重 | E72: 一级 | F72: 新康村 | G72: 农村低保一类 | H72: 是 | I72: 谢旦板 | J72: 110
A73: 70 | B73: 韩爱玉 | C73: 女 | D73: 听力 | E73: 二级 | F73: 新康村 | H73: 否 | I73: 韩爱玉 | J73: 60
A74: 71 | B74: 任旦杰 | C74: 男 | D74: 肢体 | E74: 二级 | F74: 新康村 | H74: 否 | I74: 任旦杰 | J74: 60
A75: 72 | B75: 任拥军 | C75: 男 | D75: 肢体 | E75: 二级 | F75: 新康村 | G75: 农村低保二类 | H75: 是 | I75: 任拥军 | J75: 60
A76: 73 | B76: 刘朝明 | C76: 女 | D76: 视力 | E76: 一级 | F76: 新康村 | G76: 农村低保三类 | H76: 是 | I76: 刘朝明 | J76: 110
A77: 74 | B77: 杨会郭 | C77: 男 | D77: 肢体 | E77: 二级 | F77: 新康村 | H77: 否 | I77: 杨会郭 | J77: 60
A78: 75 | B78: 杨海青 | C78: 女 | D78: 多重 | E78: 一级 | F78: 新康村 | G78: 农村低保二类 | H78: 是 | I78: 杨海青 | J78: 110
A79: 76 | B79: 王马林 | C79: 男 | D79: 听力 | E79: 二级 | F79: 新康村 | H79: 否 | I79: 王马林 | J79: 60
A80: 77 | B80: 王干地 | C80: 男 | D80: 多重 | E80: 二级 | F80: 新康村 | G80: 农村低保一类 | H80: 是 | I80: 王干地 | J80: 60
A81: 78 | B81: 陈泉连 | C81: 女 | D81: 视力 | E81: 一级 | F81: 新康村 | H81: 否 | I81: 陈泉连 | J81: 110
A82: 79 | B82: 严兴玉 | C82: 女 | D82: 听力 | E82: 二级 | F82: 新康村 | H82: 否 | I82: 严兴玉 | J82: 60
A83: 80 | B83: 严婵女 | C83: 女 | D83: 多重 | E83: 二级 | F83: 新康村 | H83: 否 | I83: 严婵女 | J83: 60
A84: 81 | B84: 谈艳丽 | C84: 女 | D84: 听力 | E84: 二级 | F84: 新康村 | H84: 否 | I84: 谈艳丽 | J84: 60
A85: 82 | B85: 付恩来 | C85: 男 | D85: 多重 | E85: 二级 | F85: 新康村 | H85: 否 | I85: 付恩来 | J85: 60
A86: 83 | B86: 韩仁全 | C86: 男 | D86: 肢体 | E86: 二级 | F86: 新康村 | H86: 否 | I86: 韩仁全 | J86: 60
A87: 84 | B87: 杨吉吉 | C87: 女 | D87: 肢体 | E87: 二级 | F87: 新康村 | H87: 否 | I87: 杨吉吉 | J87: 60
A88: 85 | B88: 韩具具 | C88: 男 | D88: 听力 | E88: 二级 | F88: 新康村 | H88: 否 | I88: 韩具具 | J88: 60
A89: 86 | B89: 韩生 | C89: 男 | D89: 听力 | E89: 二级 | F89: 新康村 | H89: 否 | I89: 韩生 | J89: 60
A90: 87 | B90: 韩小琴 | C90: 女 | D90: 肢体 | E90: 二级 | F90: 新康村 | G90: 农村低保三类 | H90: 是 | I90: 韩小琴 | J90: 60
A91: 88 | B91: 韩安全 | C91: 男 | D91: 听力 | E91: 二级 | F91: 新康村 | G91: 农村低保二类 | H91: 是 | I91: 韩文先 | J91: 60
A92: 89 | B92: 桑青爱 | C92: 女 | D92: 肢体 | E92: 二级 | F92: 新康村 | H92: 否 | I92: 桑青爱 | J92: 60
A93: 90 | B93: 张军明 | C93: 男 | D93: 多重 | E93: 一级 | F93: 新康村 | G93: 农村低保二类 | H93: 是 | I93: 张军明 | J93: 60
A94: 91 | B94: 李青林 | C94: 男 | D94: 听力 | E94: 一级 | F94: 新康村 | G94: 农村低保一类 | H94: 是 | I94: 李青林 | J94: 60
A95: 92 | B95: 杨小军 | C95: 男 | D95: 精神 | E95: 一级 | F95: 新康村 | H95: 否 | I95: 杨小军 | J95: 110
A96: 93 | B96: 刘豆介 | C96: 男 | D96: 肢体 | E96: 二级 | F96: 新康村 | H96: 否 | I96: 刘豆介 | J96: 60
A97: 94 | B97: 杨当木 | C97: 女 | D97: 听力 | E97: 二级 | F97: 新康村 | H97: 否 | I97: 杨当木 | J97: 60
A98: 95 | B98: 杨中朝 | C98: 男 | D98: 多重 | E98: 一级 | F98: 新康村 | G98: 农村低保一类 | H98: 是 | I98: 杨中朝 | J98: 110
A99: 96 | B99: 王郭成 | C99: 男 | D99: 多重 | E99: 二级 | F99: 新康村 | G99: 农村低保一类 | H99: 是 | I99: 王郭成 | J99: 60
A100: 97 | B100: 孔四代 | C100: 男 | D100: 肢体 | E100: 二级 | F100: 新康村 | H100: 否 | I100: 孔四代 | J100: 60
A101: 98 | B101: 孔扎西 | C101: 男 | D101: 智力 | E101: 二级 | F101: 新康村 | G101: 农村低保二类 | H101: 否 | I101: 孔扎西 | J101: 110
A102: 99 | B102: 孔旦儿九 | C102: 男 | D102: 多重 | E102: 一级 | F102: 新康村 | G102: 农村低保一类 | H102: 是 | I102: 孔旦儿九 | J102: 60
A103: 100 | B103: 孟林各 | C103: 女 | D103: 肢体 | E103: 一级 | F103: 新康村 | G103: 农村低保一类 | H103: 是 | I103: 孟林各 | J103: 110
A104: 101 | B104: 杨海木草 | C104: 女 | D104: 肢体 | E104: 二级 | F104: 新康村 | G104: 农村低保二类 | H104: 是 | I104: 杨海木草 | J104: 60
A105: 102 | B105: 韩天宁 | C105: 男 | D105: 精神 | E105: 二级 | F105: 新康村 | G105: 农村低保一类 | H105: 是 | I105: 韩天宁 | J105: 110
A106: 103 | B106: 韩丙学 | C106: 男 | D106: 肢体 | E106: 二级 | F106: 新康村 | H106: 否 | I106: 韩丙学 | J106: 60
A107: 104 | B107: 鲁石林 | C107: 女 | D107: 肢体 | E107: 二级 | F107: 新康村 | H107: 否 | I107: 鲁石林 | J107: 60
A108: 105 | B108: 李罗先 | C108: 女 | D108: 肢体 | E108: 一级 | F108: 新康村 | H108: 否 | I108: 李罗先 | J108: 110
A109: 106 | B109: 杨合玉 | C109: 男 | D109: 听力 | E109: 二级 | F109: 新康村 | H109: 否 | I109: 杨合玉 | J109: 60
A110: 107 | B110: 申青生保 | C110: 男 | D110: 肢体 | E110: 二级 | F110: 新康村 | G110: 农村低保二类 | H110: 是 | I110: 申青生保 | J110: 60
A111: 108 | B111: 杨晓舂 | C111: 女 | D111: 多重 | E111: 二级 | F111: 新康村 | H111: 否 | I111: 李寿林 | J111: 60
A112: 109 | B112: 李先爱 | C112: 女 | D112: 听力 | E112: 一级 | F112: 新康村 | G112: 农村低保二类 | H112: 是 | I112: 李先爱 | J112: 60
A113: 110 | B113: 毛颜红 | C113: 女 | D113: 多重 | E113: 二级 | F113: 新康村 | H113: 否 | I113: 毛颜红 | J113: 60
A114: 111 | B114: 李贡热交 | C114: 男 | D114: 肢体 | E114: 二级 | F114: 新康村 | G114: 农村低保三类 | H114: 是 | I114: 李贡热交 | J114: 60
A115: 112 | B115: 韩社些 | C115: 女 | D115: 肢体 | E115: 二级 | F115: 新康村 | H115: 否 | I115: 韩社些 | J115: 60
A116: 113 | B116: 韩全花 | C116: 女 | D116: 精神 | E116: 二级 | F116: 新康村 | H116: 否 | I116: 韩全花 | J116: 110
A117: 114 | B117: 虎慧兰 | C117: 女 | D117: 肢体 | E117: 二级 | F117: 新康村 | H117: 否 | I117: 虎慧兰 | J117: 60
A118: 115 | B118: 张典美 | C118: 女 | D118: 视力 | E118: 一级 | F118: 新康村 | H118: 否 | I118: 韩义 | J118: 110
A119: 116 | B119: 李浩婷 | C119: 女 | D119: 多重 | E119: 一级 | F119: 新康村 | G119: 农村低保二类 | H119: 否 | I119: 李次儿 | J119: 60
A120: 117 | B120: 雷发春 | C120: 男 | D120: 肢体 | E120: 二级 | F120: 新康村 | H120: 否 | I120: 雷发春 | J120: 60
A121: 118 | B121: 王开 | C121: 女 | D121: 肢体 | E121: 一级 | F121: 新康村 | G121: 农村低保二类 | H121: 是 | I121: 王开 | J121: 110
A122: 119 | B122: 余猪娃 | C122: 女 | D122: 多重 | E122: 二级 | F122: 新康村 | G122: 农村低保二类 | H122: 是 | I122: 金加义 | J122: 60
A123: 120 | B123: 刘学庆 | C123: 男 | D123: 视力 | E123: 二级 | F123: 新康村 | H123: 否 | I123: 刘学庆 | J123: 60
A124: 121 | B124: 余下拉 | C124: 男 | D124: 多重 | E124: 二级 | F124: 新康村 | G124: 农村低保二类 | H124: 是 | I124: 余下拉 | J124: 60
A125: 122 | B125: 鲁苟代 | C125: 男 | D125: 肢体 | E125: 二级 | F125: 新康村 | H125: 否 | I125: 鲁苟代 | J125: 60
A126: 123 | B126: 杨代女 | C126: 女 | D126: 肢体 | E126: 二级 | F126: 新康村 | H126: 否 | I126: 杨代女 | J126: 60
A127: 124 | B127: 王哈胖 | C127: 女 | D127: 听力 | E127: 一级 | F127: 新康村 | G127: 农村低保二类 | H127: 是 | I127: 王哈胖 | J127: 60
A128: 125 | B128: 谢开主 | C128: 男 | D128: 听力 | E128: 一级 | F128: 新康村 | G128: 农村低保二类 | H128: 是 | I128: 谢开主 | J128: 60
A129: 126 | B129: 杨大羊条 | C129: 男 | D129: 视力 | E129: 一级 | F129: 新康村 | H129: 否 | I129: 杨大羊条 | J129: 110
A130: 127 | B130: 严英才 | C130: 男 | D130: 听力 | E130: 一级 | F130: 新康村 | H130: 否 | I130: 严英才 | J130: 60
A131: 128 | B131: 虎百生保 | C131: 男 | D131: 肢体 | E131: 一级 | F131: 新康村 | G131: 农村低保二类 | H131: 是 | I131: 虎百生保 | J131: 110
A132: 129 | B132: 韩尖得 | C132: 男 | D132: 听力 | E132: 一级 | F132: 新康村 | G132: 农村低保一类 | H132: 是 | I132: 韩尖得 | J132: 60
A133: 130 | B133: 虎才得 | C133: 男 | D133: 听力 | E133: 一级 | F133: 新康村 | H133: 否 | I133: 虎才得 | J133: 60
A134: 131 | B134: 房应生 | C134: 男 | D134: 肢体 | E134: 二级 | F134: 新康村 | H134: 否 | I134: 房应生 | J134: 60
A135: 132 | B135: 房海生 | C135: 男 | D135: 听力 | E135: 二级 | F135: 新康村 | G135: 农村低保二类 | H135: 是 | I135: 房海生 | J135: 60
A136: 133 | B136: 房尕娃 | C136: 女 | D136: 肢体 | E136: 一级 | F136: 新康村 | H136: 否 | I136: 房尕娃 | J136: 110
A137: 134 | B137: 杨马青 | C137: 女 | D137: 肢体 | E137: 二级 | F137: 新康村 | H137: 否 | I137: 杨马青 | J137: 60
A138: 135 | B138: 王加面 | C138: 女 | D138: 肢体 | E138: 一级 | F138: 新康村 | G138: 农村低保一类 | H138: 是 | I138: 王加面 | J138: 110
A139: 136 | B139: 虎丑生 | C139: 男 | D139: 听力 | E139: 一级 | F139: 新康村 | H139: 否 | I139: 虎丑生 | J139: 60
A140: 137 | B140: 仇青海 | C140: 男 | D140: 听力 | E140: 一级 | F140: 新康村 | H140: 否 | I140: 仇青海 | J140: 60
A141: 138 | B141: 韩先先 | C141: 女 | D141: 多重 | E141: 一级 | F141: 新康村 | H141: 否 | I141: 韩先先 | J141: 60
A142: 139 | B142: 刘张申 | C142: 男 | D142: 肢体 | E142: 二级 | F142: 新康村 | H142: 否 | I142: 刘张申 | J142: 60
A143: 140 | B143: 仇德兴 | C143: 男 | D143: 肢体 | E143: 二级 | F143: 新康村 | H143: 否 | I143: 仇德兴 | J143: 60
A144: 141 | B144: 虎照照 | C144: 女 | D144: 精神 | E144: 二级 | F144: 新康村 | G144: 农村低保二类 | H144: 否 | I144: 虎照照 | J144: 110
A145: 142 | B145: 张志荣 | C145: 男 | D145: 听力 | E145: 一级 | F145: 新康村 | H145: 否 | I145: 张志荣 | J145: 60
A146: 143 | B146: 沈五月生 | C146: 男 | D146: 听力 | E146: 一级 | F146: 新康村 | G146: 农村低保二类 | H146: 是 | I146: 沈五月生 | J146: 60
A147: 144 | B147: 张革命来 | C147: 男 | D147: 多重 | E147: 一级 | F147: 新康村 | G147: 农村低保三类 | H147: 是 | I147: 张革命来 | J147: 60
A148: 145 | B148: 王爱爱 | C148: 女 | D148: 肢体 | E148: 二级 | F148: 新康村 | H148: 否 | I148: 王爱爱 | J148: 60
A149: 146 | B149: 杨步主 | C149: 女 | D149: 听力 | E149: 二级 | F149: 新康村 | H149: 否 | I149: 杨步主 | J149: 60
A150: 147 | B150: 才大义 | C150: 男 | D150: 听力 | E150: 二级 | F150: 新康村 | H150: 否 | I150: 才大义 | J150: 60
A151: 148 | B151: 尚兴 | C151: 男 | D151: 听力 | E151: 一级 | F151: 新康村 | H151: 否 | I151: 尚兴 | J151: 60
A152: 149 | B152: 年青山 | C152: 男 | D152: 视力 | E152: 一级 | F152: 新康村 | H152: 否 | I152: 年青山 | J152: 110
A153: 150 | B153: 杨英得 | C153: 男 | D153: 听力 | E153: 二级 | F153: 新康村 | H153: 否 | I153: 杨英得 | J153: 60
A154: 151 | B154: 尹要九 | C154: 女 | D154: 听力 | E154: 一级 | F154: 新康村 | H154: 否 | I154: 尹要九 | J154: 60
A155: 152 | B155: 蒋何义 | C155: 女 | D155: 多重 | E155: 一级 | F155: 新康村 | H155: 否 | I155: 蒋何义 | J155: 60
A156: 153 | B156: 韩田社 | C156: 女 | D156: 听力 | E156: 一级 | F156: 新康村 | H156: 否 | I156: 韩田社 | J156: 60
A157: 154 | B157: 韩成翠 | C157: 女 | D157: 听力 | E157: 二级 | F157: 新康村 | H157: 否 | I157: 韩成翠 | J157: 60
A158: 155 | B158: 仇高财 | C158: 男 | D158: 听力 | E158: 一级 | F158: 新康村 | G158: 农村低保二类 | H158: 是 | I158: 仇高财 | J158: 60
A159: 156 | B159: 杨许汉 | C159: 男 | D159: 听力 | E159: 一级 | F159: 新康村 | G159: 农村低保二类 | H159: 否 | I159: 杨许汉 | J159: 60
A160: 157 | B160: 本仁得 | C160: 男 | D160: 智力 | E160: 二级 | F160: 新康村 | G160: 农村低保二类 | H160: 是 | I160: 本仁得 | J160: 110
A161: 158 | B161: 袁来喜 | C161: 男 | D161: 智力 | E161: 二级 | F161: 新康村 | H161: 否 | I161: 袁来喜 | J161: 110
A162: 159 | B162: 姚礼明 | C162: 男 | D162: 视力 | E162: 二级 | F162: 新康村 | H162: 否 | I162: 姚礼明 | J162: 60
A163: 160 | B163: 本四十九 | C163: 男 | D163: 肢体 | E163: 二级 | F163: 新康村 | G163: 农村低保二类 | H163: 是 | I163: 本四十九 | J163: 60
A164: 161 | B164: 李先朝 | C164: 男 | D164: 听力 | E164: 二级 | F164: 新康村 | H164: 否 | I164: 李先朝 | J164: 60
A165: 162 | B165: 韩根林 | C165: 女 | D165: 听力 | E165: 一级 | F165: 新康村 | H165: 否 | I165: 桑祖才 | J165: 60
A166: 163 | B166: 陈乔珍 | C166: 女 | D166: 听力 | E166: 一级 | F166: 新康村 | H166: 否 | I166: 陈乔珍 | J166: 60
A167: 164 | B167: 刘女子 | C167: 女 | D167: 多重 | E167: 一级 | F167: 新康村 | H167: 否 | I167: 刘女子 | J167: 60
A168: 165 | B168: 李狗代女 | C168: 女 | D168: 听力 | E168: 一级 | F168: 新康村 | G168: 农村低保三类 | H168: 是 | I168: 李狗代女 | J168: 60
A169: 166 | B169: 陈元成 | C169: 男 | D169: 肢体 | E169: 二级 | F169: 新康村 | H169: 否 | I169: 陈元成 | J169: 60
A170: 167 | B170: 张尖怪 | C170: 女 | D170: 视力 | E170: 一级 | F170: 新康村 | H170: 否 | I170: 张尖怪 | J170: 110
A171: 168 | B171: 杨腊梅 | C171: 女 | D171: 听力 | E171: 一级 | F171: 新康村 | G171: 农村低保三类 | H171: 是 | I171: 韩剑生 | J171: 60
A172: 169 | B172: 刘全兴 | C172: 男 | D172: 视力 | E172: 二级 | F172: 新康村 | G172: 农村低保二类 | H172: 是 | I172: 刘全兴 | J172: 60
A173: 170 | B173: 王娄九 | C173: 女 | D173: 多重 | E173: 一级 | F173: 新康村 | G173: 农村低保一类 | H173: 是 | I173: 王刚杰凑 | J173: 60
A174: 171 | B174: 王金玉 | C174: 女 | D174: 多重 | E174: 一级 | F174: 新康村 | H174: 否 | I174: 王金玉 | J174: 60
A175: 172 | B175: 王小玲 | C175: 女 | D175: 多重 | E175: 二级 | F175: 新康村 | G175: 农村低保二类 | H175: 是 | I175: 王小玲 | J175: 110
A176: 173 | B176: 张由旦 | C176: 女 | D176: 视力 | E176: 一级 | F176: 新康村 | H176: 否 | I176: 张由旦 | J176: 110
A177: 174 | B177: 孔则英 | C177: 女 | D177: 听力 | E177: 二级 | F177: 新康村 | H177: 否 | I177: 孔则英 | J177: 60
A178: 175 | B178: 孔龙辉 | C178: 男 | D178: 智力 | E178: 二级 | F178: 新康村 | G178: 农村低保 三类 | H178: 是 | I178: 孔当当喜 | J178: 110
A179: 176 | B179: 刘宝贵 | C179: 男 | D179: 肢体 | E179: 二级 | F179: 新康村 | G179: 农村低保 一类 | H179: 是 | I179: 刘宝贵 | J179: 60
A180: 177 | B180: 韩海德 | C180: 男 | D180: 视力 | E180: 一级 | F180: 新康村 | G180: 农村低保三类 | H180: 是 | I180: 韩海德 | J180: 110
A181: 178 | B181: 王共成 | C181: 男 | D181: 听力 | E181: 一级 | F181: 新康村 | H181: 否 | I181: 王共成 | J181: 60
A182: 179 | B182: 杨权里 | C182: 女 | D182: 听力 | E182: 一级 | F182: 新康村 | H182: 否 | I182: 杨权里 | J182: 60
A183: 180 | B183: 白亚巴 | C183: 男 | D183: 听力 | E183: 二级 | F183: 新康村 | H183: 否 | I183: 白亚巴 | J183: 60
A184: 181 | B184: 李风玲 | C184: 女 | D184: 听力 | E184: 二级 | F184: 新康村 | H184: 否 | I184: 李风玲 | J184: 60
A185: 182 | B185: 王次义 | C185: 女 | D185: 肢体 | E185: 一级 | F185: 新康村 | G185: 农村低保二类 | H185: 是 | I185: 王次义 | J185: 110
A186: 183 | B186: 刘三斤 | C186: 女 | D186: 视力 | E186: 二级 | F186: 新康村 | H186: 否 | I186: 刘三斤 | J186: 60
A187: 184 | B187: 白次儿族 | C187: 女 | D187: 视力 | E187: 一级 | F187: 新康村 | H187: 否 | I187: 余永果 | J187: 110
A188: 185 | B188: 王老大 | C188: 男 | D188: 智力 | E188: 二级 | F188: 新康村 | G188: 农村低保二类 | H188: 是 | I188: 王生 | J188: 110
A189: 186 | B189: 虎玉合 | C189: 女 | D189: 多重 | E189: 二级 | F189: 新康村 | H189: 否 | I189: 虎玉合 | J189: 60
A190: 187 | B190: 薛平义 | C190: 男 | D190: 精神 | E190: 二级 | F190: 新康村 | H190: 否 | I190: 薛平义 | J190: 110
A191: 188 | B191: 黄占西 | C191: 男 | D191: 听力 | E191: 一级 | F191: 新康村 | H191: 否 | I191: 黄占西 | J191: 60
A192: 189 | B192: 本伍保 | C192: 男 | D192: 多重 | E192: 一级 | F192: 新康村 | H192: 否 | I192: 本伍保 | J192: 60
A193: 190 | B193: 李条英 | C193: 女 | D193: 多重 | E193: 二级 | F193: 新康村 | H193: 否 | I193: 李砍交 | J193: 60
A194: 191 | B194: 房瑞兰 | C194: 女 | D194: 肢体 | E194: 二级 | F194: 新康村 | H194: 否 | I194: 房瑞兰 | J194: 60
A195: 192 | B195: 杨九半 | C195: 女 | D195: 肢体 | E195: 二级 | F195: 新康村 | H195: 否 | I195: 杨九半 | J195: 60
A196: 193 | B196: 李存来 | C196: 男 | D196: 听力 | E196: 一级 | F196: 新康村 | H196: 否 | I196: 李存来 | J196: 60
A197: 194 | B197: 刘女 | C197: 女 | D197: 精神 | E197: 二级 | F197: 新康村 | H197: 否 | I197: 刘女 | J197: 110
A198: 195 | B198: 虎轮轮 | C198: 女 | D198: 肢体 | E198: 二级 | F198: 新康村 | H198: 否 | I198: 虎轮轮 | J198: 60
A199: 196 | B199: 尹汉明 | C199: 男 | D199: 精神 | E199: 二级 | F199: 新康村 | G199: 农村低保一类 | H199: 是 | I199: 尹汉明 | J199: 110
A200: 197 | B200: 王卷方 | C200: 男 | D200: 肢体 | E200: 二级 | F200: 新康村 | G200: 农村低保二类 | H200: 是 | I200: 王卷方 | J200: 60
... 7 more rows

Sheet 困残
A1: 西岔镇2025年9月份困难残疾人生活补贴发放公示表
A2: 填报单位： | H2: 公示时间：2025年8月22日-2025年8月28日
A3: 序号 | B3: 姓名 | C3: 性别 | D3: 残疾 类别 | E3: 残疾 等级 | F3: 家庭 住址 | G3: 享受低 保类别 | H3: 是否享受重度残疾人护理补贴 | I3: 户名 | J3: 9月发 放金额 | K3: 备注
A4: 1 | B4: 宁召兰 | C4: 女 | D4: 精神 | E4: 三级 | F4: 新康村 | G4: 农村低保三类 | H4: 否 | I4: 宁三十生 | J4: 110
A5: 2 | B5: 韩小林 | C5: 女 | D5: 肢体 | E5: 二级 | F5: 新康村 | G5: 农村低保三类 | H5: 是 | I5: 韩小林 | J5: 110
A6: 3 | B6: 宁明兴 | C6: 男 | D6: 肢体 | E6: 二级 | F6: 新康村 | G6: 农村低保三类 | H6: 是 | I6: 宁明兴 | J6: 110
A7: 4 | B7: 刘永林 | C7: 女 | D7: 听力 | E7: 二级 | F7: 新康村 | G7: 农村低保三类 | H7: 是 | I7: 刘永林 | J7: 110
A8: 5 | B8: 宁宗辉 | C8: 男 | D8: 精神 | E8: 三级 | F8: 新康村 | G8: 农村低保三类 | H8: 否 | I8: 宁明兴 | J8: 110
A9: 6 | B9: 房高林 | C9: 男 | D9: 肢体 | E9: 二级 | F9: 新康村 | G9: 农村低保二类 | H9: 是 | I9: 房高林 | J9: 110
A10: 7 | B10: 谈彩霞 | C10: 女 | D10: 肢体 | E10: 二级 | F10: 新康村 | G10: 农村低保二类 | H10: 是 | I10: 房高林 | J10: 110
A11: 8 | B11: 薛许琴 | C11: 女 | D11: 多重 | E11: 二级 | F11: 新康村 | G11: 农村低保二类 | H11: 是 | I11: 薛许琴 | J11: 110
A12: 9 | B12: 仇忠海 | C12: 男 | D12: 多重 | E12: 二级 | F12: 新康村 | G12: 农村低保一类 | H12: 是 | I12: 仇忠海 | J12: 110
A13: 10 | B13: 王权龙 | C13: 男 | D13: 肢体 | E13: 二级 | F13: 新康村 | G13: 农村低保一类 | H13: 是 | I13: 王权龙 | J13: 110
A14: 11 | B14: 孔艺豪 | C14: 男 | D14: 智力 | E14: 二级 | F14: 新康村 | G14: 农村低保四类 | H14: 是 | I14: 孔艺豪 | J14: 110
A15: 12 | B15: 杨九巴 | C15: 男 | D15: 听力 | E15: 二级 | F15: 新康村 | G15: 农村低保二类 | H15: 是 | I15: 杨九巴 | J15: 110
A16: 13 | B16: 韩百条 | C16: 女 | D16: 多重 | E16: 一级 | F16: 新康村 | G16: 农村低保二类 | H16: 是 | I16: 宁四得 | J16: 110
A17: 14 | B17: 杨兰女 | C17: 女 | D17: 多重 | E17: 二级 | F17: 新康村 | G17: 农村低保二类 | H17: 是 | I17: 杨兰女 | J17: 110
A18: 15 | B18: 桑东彦 | C18: 女 | D18: 智力 | E18: 三级 | F18: 新康村 | G18: 农村低保三类 | H18: 否 | I18: 刘清成 | J18: 110
A19: 16 | B19: 张革命来 | C19: 男 | D19: 多重 | E19: 三级 | F19: 新康村 | G19: 农村低保三类 | H19: 否 | I19: 张革命来 | J19: 110
A20: 17 | B20: 韩其它 | C20: 女 | D20: 肢体 | E20: 四级 | F20: 新康村 | G20: 农村低保二类 | H20: 否 | I20: 仇平生 | J20: 110
A21: 18 | B21: 仇平生 | C21: 男 | D21: 听力 | E21: 四级 | F21: 新康村 | G21: 农村低保二类 | H21: 否 | I21: 仇平生 | J21: 110
A22: 19 | B22: 宁四得 | C22: 男 | D22: 听力 | E22: 三级 | F22: 新康村 | G22: 农村低保二类 | H22: 否 | I22: 宁四得 | J22: 110
A23: 20 | B23: 李新平 | C23: 男 | D23: 精神 | E23: 三级 | F23: 新康村 | G23: 农村低保二类 | H23: 否 | I23: 李新平 | J23: 110
A24: 21 | B24: 贡宝嘉 | C24: 男 | D24: 肢体 | E24: 一级 | F24: 新康村 | G24: 农村低保一类 | H24: 是 | I24: 贡宝嘉 | J24: 110
A25: 22 | B25: 金占西 | C25: 男 | D25: 多重 | E25: 二级 | F25: 新康村 | G25: 农村低保二类 | H25: 是 | I25: 金占西 | J25: 110
A26: 23 | B26: 闵次儿族 | C26: 女 | D26: 视力 | E26: 二级 | F26: 新康村 | G26: 农村低保二类 | H26: 是 | I26: 闵次儿族 | J26: 110
A27: 24 | B27: 张军生 | C27: 男 | D27: 肢体 | E27: 二级 | F27: 新康村 | G27: 农村低保一类 | H27: 是 | I27: 张军生 | J27: 110
A28: 25 | B28: 韩菊红 | C28: 男 | D28: 多重 | E28: 一级 | F28: 新康村 | G28: 农村低保三类 | H28: 是 | I28: 韩菊红 | J28: 110
A29: 26 | B29: 杨四闹 | C29: 男 | D29: 肢体 | E29: 四级 | F29: 新康村 | G29: 农村低保二类 | H29: 否 | I29: 杨四闹 | J29: 110
A30: 27 | B30: 毛小学 | C30: 男 | D30: 多重 | E30: 一级 | F30: 新康村 | G30: 农村低保二类 | H30: 是 | I30: 毛小学 | J30: 110
A31: 28 | B31: 李小女 | C31: 女 | D31: 精神 | E31: 二级 | F31: 新康村 | G31: 农村低保一类 | H31: 是 | I31: 李小女 | J31: 110
A32: 29 | B32: 杜七斤 | C32: 男 | D32: 肢体 | E32: 四级 | F32: 新康村 | G32: 农村低保三类 | H32: 否 | I32: 杜民张 | J32: 110
A33: 30 | B33: 王先古 | C33: 男 | D33: 肢体 | E33: 三级 | F33: 新康村 | G33: 农村低保二类 | H33: 否 | I33: 王先古 | J33: 110
A34: 31 | B34: 年四斤 | C34: 女 | D34: 肢体 | E34: 三级 | F34: 新康村 | G34: 农村低保一类 | H34: 否 | I34: 年四斤 | J34: 110
A35: 32 | B35: 张马青 | C35: 女 | D35: 精神 | E35: 二级 | F35: 新康村 | G35: 农村低保二类 | H35: 是 | I35: 张马青 | J35: 110
A36: 33 | B36: 李先爱 | C36: 女 | D36: 听力 | E36: 一级 | F36: 新康村 | G36: 农村低保二类 | H36: 是 | I36: 李先爱 | J36: 110
A37: 34 | B37: 沈五月生 | C37: 男 | D37: 听力 | E37: 三级 | F37: 新康村 | G37: 农村低保二类 | H37: 否 | I37: 沈五月生 | J37: 110
A38: 35 | B38: 刘代女 | C38: 女 | D38: 肢体 | E38: 四级 | F38: 新康村 | G38: 农村低保三类 | H38: 否 | I38: 刘代女 | J38: 110
A39: 36 | B39: 李农花 | C39: 女 | D39: 多重 | E39: 三级 | F39: 新康村 | G39: 农村低保二类 | H39: 否 | I39: 虎六斤 | J39: 110
A40: 37 | B40: 沈龙王保 | C40: 男 | D40: 听力 | E40: 三级 | F40: 新康村 | G40: 农村低保二类 | H40: 否 | I40: 虎六斤 | J40: 110
A41: 38 | B41: 杨海成 | C41: 男 | D41: 智力 | E41: 三级 | F41: 新康村 | G41: 农村低保二类 | H41: 否 | I41: 杨海成 | J41: 110
A42: 39 | B42: 杨小兵 | C42: 男 | D42: 多重 | E42: 二级 | F42: 新康村 | G42: 农村低保一类 | H42: 是 | I42: 杨小兵 | J42: 110
A43: 40 | B43: 谢旦板 | C43: 男 | D43: 多重 | E43: 一级 | F43: 新康村 | G43: 农村低保一类 | H43: 是 | I43: 谢旦板 | J43: 110
A44: 41 | B44: 刘朝明 | C44: 女 | D44: 视力 | E44: 一级 | F44: 新康村 | G44: 农村低保三类 | H44: 是 | I44: 刘朝明 | J44: 110
A45: 42 | B45: 王干地 | C45: 男 | D45: 多重 | E45: 二级 | F45: 新康村 | G45: 农村低保一类 | H45: 是 | I45: 王干地 | J45: 110
A46: 43 | B46: 余冬慧 | C46: 女 | D46: 多重 | E46: 一级 | F46: 新康村 | G46: 农村低保一类 | H46: 是 | I46: 余冬慧 | J46: 110
A47: 44 | B47: 金青过 | C47: 女 | D47: 多重 | E47: 三级 | F47: 新康村 | G47: 农村低保二类 | H47: 否 | I47: 金青过 | J47: 110
A48: 45 | B48: 王先民 | C48: 女 | D48: 多重 | E48: 三级 | F48: 新康村 | G48: 农村低保二类 | H48: 否 | I48: 虎二权 | J48: 110
A49: 46 | B49: 李万得草 | C49: 女 | D49: 视力 | E49: 三级 | F49: 新康村 | G49: 农村低保二类 | H49: 否 | I49: 李万得草 | J49: 110
A50: 47 | B50: 仇高兴 | C50: 男 | D50: 听力 | E50: 三级 | F50: 新康村 | G50: 农村低保二类 | H50: 否 | I50: 仇高兴 | J50: 110
A51: 48 | B51: 韩天宁 | C51: 男 | D51: 精神 | E51: 二级 | F51: 新康村 | G51: 农村低保一类 | H51: 是 | I51: 韩天宁 | J51: 110
A52: 49 | B52: 张来平 | C52: 男 | D52: 智力 | E52: 四级 | F52: 新康村 | G52: 农村低保一类 | H52: 否 | I52: 张来平 | J52: 110
A53: 50 | B53: 本严知九 | C53: 男 | D53: 多重 | E53: 三级 | F53: 新康村 | G53: 农村低保一类 | H53: 否 | I53: 本严知九 | J53: 110
A54: 51 | B54: 杨瑞兰 | C54: 女 | D54: 肢体 | E54: 三级 | F54: 新康村 | G54: 农村低保二类 | H54: 否 | I54: 杨瑞兰 | J54: 110
A55: 52 | B55: 李当利麻 | C55: 男 | D55: 肢体 | E55: 四级 | F55: 新康村 | G55: 农村低保二类 | H55: 否 | I55: 李兰交 | J55: 110
A56: 53 | B56: 虎百生保 | C56: 男 | D56: 肢体 | E56: 一级 | F56: 新康村 | G56: 农村低保二类 | H56: 是 | I56: 虎百生保 | J56: 110
A57: 54 | B57: 韩尖得 | C57: 男 | D57: 听力 | E57: 一级 | F57: 新康村 | G57: 农村低保一类 | H57: 是 | I57: 韩尖得 | J57: 110
A58: 55 | B58: 虎二权 | C58: 男 | D58: 精神 | E58: 四级 | F58: 新康村 | G58: 农村低保二类 | H58: 否 | I58: 虎二权 | J58: 110
A59: 56 | B59: 桑菊先 | C59: 女 | D59: 精神 | E59: 三级 | F59: 新康村 | G59: 农村低保二类 | H59: 否 | I59: 鲁志俊 | J59: 110
A60: 57 | B60: 韩喜各 | C60: 男 | D60: 肢体 | E60: 三级 | F60: 新康村 | G60: 农村低保二类 | H60: 否 | I60: 韩尖成 | J60: 110
A61: 58 | B61: 杨要茄 | C61: 男 | D61: 精神 | E61: 三级 | F61: 新康村 | G61: 农村低保二类 | H61: 否 | I61: 杨要茄 | J61: 110
A62: 59 | B62: 何召理 | C62: 男 | D62: 视力 | E62: 一级 | F62: 新康村 | G62: 农村低保二类 | H62: 是 | I62: 何召理 | J62: 110
A63: 60 | B63: 杨海木草 | C63: 女 | D63: 肢体 | E63: 二级 | F63: 新康村 | G63: 农村低保二类 | H63: 是 | I63: 杨海木草 | J63: 110
A64: 61 | B64: 王娄九 | C64: 女 | D64: 多重 | E64: 一级 | F64: 新康村 | G64: 农村低保一类 | H64: 否 | I64: 王刚杰凑 | J64: 110
A65: 62 | B65: 房海生 | C65: 男 | D65: 听力 | E65: 二级 | F65: 新康村 | G65: 农村低保二类 | H65: 是 | I65: 房海生 | J65: 110
A66: 63 | B66: 王加面 | C66: 女 | D66: 肢体 | E66: 一级 | F66: 新康村 | G66: 农村低保一类 | H66: 是 | I66: 王加面 | J66: 110
A67: 64 | B67: 金闹主 | C67: 男 | D67: 肢体 | E67: 三级 | F67: 新康村 | G67: 农村低保二类 | H67: 否 | I67: 金闹主 | J67: 110
A68: 65 | B68: 杨金花 | C68: 女 | D68: 智力 | E68: 四级 | F68: 新康村 | G68: 农村低保二类 | H68: 否 | I68: 高代成 | J68: 110
A69: 66 | B69: 苏先主 | C69: 男 | D69: 肢体 | E69: 三级 | F69: 新康村 | G69: 农村低保二类 | H69: 否 | I69: 苏先主 | J69: 110
A70: 67 | B70: 李浩婷 | C70: 女 | D70: 多重 | E70: 一级 | F70: 新康村 | G70: 农村低保二类 | H70: 是 | I70: 李次儿 | J70: 110
A71: 68 | B71: 房光明 | C71: 男 | D71: 听力 | E71: 二级 | F71: 新康村 | G71: 农村低保二类 | H71: 是 | I71: 房光明 | J71: 110
A72: 69 | B72: 仇高财 | C72: 男 | D72: 听力 | E72: 一级 | F72: 新康村 | G72: 农村低保二类 | H72: 是 | I72: 仇高财 | J72: 110
A73: 70 | B73: 虎照照 | C73: 女 | D73: 精神 | E73: 二级 | F73: 新康村 | G73: 农村低保二类 | H73: 是 | I73: 虎照照 | J73: 110
A74: 71 | B74: 孔扎西 | C74: 男 | D74: 智力 | E74: 二级 | F74: 新康村 | G74: 农村低保二类 | H74: 是 | I74: 孔扎西 | J74: 110
A75: 72 | B75: 尚惠庆 | C75: 女 | D75: 精神 | E75: 三级 | F75: 新康村 | G75: 农村低保二类 | H75: 否 | I75: 姚正合 | J75: 110
A76: 73 | B76: 李成生 | C76: 男 | D76: 肢体 | E76: 四级 | F76: 新康村 | G76: 农村低保三类 | H76: 否 | I76: 李成生 | J76: 110
A77: 74 | B77: 杨腊梅 | C77: 女 | D77: 听力 | E77: 一级 | F77: 新康村 | G77: 农村低保三类 | H77: 否 | I77: 韩剑生 | J77: 110
A78: 75 | B78: 本强兵 | C78: 男 | D78: 精神 | E78: 三级 | F78: 新康村 | G78: 农村低保二类 | H78: 否 | I78: 本强兵 | J78: 110
A79: 76 | B79: 本四十九 | C79: 男 | D79: 肢体 | E79: 二级 | F79: 新康村 | G79: 农村低保二类 | H79: 是 | I79: 本四十九 | J79: 110
A80: 77 | B80: 本仁得 | C80: 男 | D80: 智力 | E80: 二级 | F80: 新康村 | G80: 农村低保二类 | H80: 是 | I80: 本仁得 | J80: 110
A81: 78 | B81: 虎海军 | C81: 男 | D81: 肢体 | E81: 四级 | F81: 新康村 | G81: 农村低保二类 | H81: 否 | I81: 虎海军 | J81: 110
A82: 79 | B82: 孔龙辉 | C82: 男 | D82: 智力 | E82: 二级 | F82: 新康村 | G82: 农村低保三类 | H82: 是 | I82: 孔当当喜 | J82: 110
A83: 80 | B83: 刘宝贵 | C83: 男 | D83: 肢体 | E83: 二级 | F83: 新康村 | G83: 农村低保一类 | H83: 是 | I83: 刘宝贵 | J83: 110
A84: 81 | B84: 李狗代女 | C84: 女 | D84: 听力 | E84: 一级 | F84: 新康村 | G84: 农村低保三类 | H84: 是 | I84: 李狗代女 | J84: 110
A85: 82 | B85: 杨次大交 | C85: 男 | D85: 肢体 | E85: 四级 | F85: 新康村 | G85: 农村低保二类 | H85: 否 | I85: 杨次大交 | J85: 110
A86: 83 | B86: 张军明 | C86: 男 | D86: 多重 | E86: 一级 | F86: 新康村 | G86: 农村低保二类 | H86: 是 | I86: 张军明 | J86: 110
A87: 84 | B87: 申青生保 | C87: 男 | D87: 肢体 | E87: 二级 | F87: 新康村 | G87: 农村低保二类 | H87: 是 | I87: 申青生保 | J87: 110
A88: 85 | B88: 王老大 | C88: 男 | D88: 智力 | E88: 二级 | F88: 新康村 | G88: 农村低保二类 | H88: 是 | I88: 王生 | J88: 110
A89: 86 | B89: 韩梅 | C89: 女 | D89: 听力 | E89: 四级 | F89: 新康村 | G89: 农村低保三类 | H89: 否 | I89: 杜民张 | J89: 110
A90: 87 | B90: 白次儿族 | C90: 女 | D90: 视力 | E90: 一级 | F90: 新康村 | G90: 农村低保三类 | H90: 是 | I90: 余永果 | J90: 110
A91: 88 | B91: 杨许汉 | C91: 男 | D91: 听力 | E91: 一级 | F91: 新康村 | G91: 农村低保二类 | H91: 是 | I91: 杨许汉 | J91: 110
A92: 89 | B92: 王小玲 | C92: 女 | D92: 多重 | E92: 二级 | F92: 新康村 | G92: 农村低保二类 | H92: 是 | I92: 王小玲 | J92: 110
A93: 90 | B93: 尹汉明 | C93: 男 | D93: 精神 | E93: 二级 | F93: 新康村 | G93: 农村低保一类 | H93: 是 | I93: 尹汉明 | J93: 110
A94: 91 | B94: 周庆宝 | C94: 男 | D94: 肢体 | E94: 四级 | F94: 新康村 | G94: 农村低保二类 | H94: 否 | I94: 周庆宝 | J94: 110
A95: 92 | B95: 袁永安 | C95: 男 | D95: 精神 | E95: 二级 | F95: 新康村 | G95: 农村低保一类 | H95: 是 | I95: 袁永安 | J95: 110
A96: 93 | B96: 张永明 | C96: 男 | D96: 肢体 | E96: 二级 | F96: 新康村 | G96: 农村低保二类 | H96: 是 | I96: 张永明 | J96: 110
A97: 94 | B97: 王卷方 | C97: 男 | D97: 肢体 | E97: 二级 | F97: 新康村 | G97: 农村低保二类 | H97: 是 | I97: 王卷方 | J97: 110
A98: 95 | B98: 袁明 | C98: 女 | D98: 听力 | E98: 三级 | F98: 新康村 | G98: 农村低保二类 | H98: 否 | I98: 袁明 | J98: 110
A99: 96 | B99: 刘全兴 | C99: 男 | D99: 视力 | E99: 二级 | F99: 新康村 | G99: 农村低保二类 | H99: 是 | I99: 刘全兴 | J99: 110
A100: 村干部签字： | E100: 监委会主任及意见： | H100: 监委会主任电话： | J100: 镇监督电话：5881227

Sheet 事实无人抚养儿童
A1: 西岔镇2025年9月事实无人抚养儿童基本生活补贴发放表
A2: 填报单位：西岔镇人民政府
A3: 序号 | B3: 村（社） | C3: 儿童姓名 | D3: 监护人姓名 | E3: 享受类别 （全额/差额） | F3: 已享受政策及标准 | G3: 银行开户人 | H3: 9月实际发放金额 | I3: 备注
A4: 1 | B4: 新康村 | C4: 韩田伟 | D4: 韩尖得 | E4: 1080/380 | F4: 低保一类，享受金额700元 | G4: 韩尖得 | H4: 380
A5: 2 | B5: 新康村 | C5: 刘世宏 | D5: 刘社各 | E5: 1080/450 | F5: 低保二类、享受金额630元 | G5: 刘社各 | H5: 450
A6: 3 | B6: 新康村 | C6: 房健强 | D6: 房高林 | E6: 1080/450 | F6: 低保二类、享受金额630元 | G6: 房高林 | H6: 450
A7: 4 | B7: 新康村 | C7: 房建丽 | D7: 房高林 | E7: 1080/450 | F7: 低保二类、享受金额630元 | G7: 房高林 | H7: 450
A8: 5 | B8: 新康村 | C8: 韩杰 | D8: 韩新民 | E8: 1080/980 | F8: 低保三类、享受金额100元 | G8: 韩新民 | H8: 980
A9: 6 | B9: 新康村 | C9: 张瑞成 | D9: 张万春 | E9: 1080/380 | F9: 低保一类，享受金额700元 | G9: 张瑞成 | H9: 380
A10: 7 | B10: 新康村 | C10: 石佳萱 | D10: 石永成 | E10: 1080 | F10: 否 | G10: 石永成 | H10: 1080 | I10: 2025年4月取消低保（全额发放）
A11: 8 | B11: 新康村 | C11: 沈明月 | D11: 沈九各 | E11: 1080 | F11: 否 | G11: 沈九各 | H11: 1080
A12: 9 | B12: 新康村 | C12: 沈非翠 | D12: 沈九各 | E12: 1080 | F12: 否 | G12: 沈九各 | H12: 1080
A13: 10 | B13: 新康村 | C13: 沈文强 | D13: 沈九各 | E13: 1080 | F13: 否 | G13: 沈九各 | H13: 1080
A14: 11 | B14: 新康村 | C14: 虎天佑 | D14: 虎改改 | E14: 1080 | F14: 否 | G14: 虎改改 | H14: 1080
A15: 12 | B15: 新康村 | C15: 金福平 | D15: 金干衣 | E15: 1080/380 | F15: 低保一类，享受金额700元 | G15: 金干衣 | H15: 380
A16: 13 | B16: 新康村 | C16: 金祥 | D16: 金干衣 | E16: 1080/380 | F16: 低保一类，享受金额700元 | G16: 金干衣 | H16: 380
A17: 14 | B17: 新康村 | C17: 谢央金 | D17: 任青莲 | E17: 1080 | F17: 否 | G17: 谢光衣 | H17: 1080
A18: 15 | B18: 新康村 | C18: 孔旭琴 | D18: 孔各去 | E18: 1080 | F18: 否 | G18: 孔各去 | H18: 1080 | I18: 2025年4月取消低保（全额发放）
A19: 16 | B19: 新康村 | C19: 房梅 | D19: 房海生 | E19: 1080/450 | F19: 低保二类，享受金额630元 | G19: 房海生 | H19: 450 | I19: 9月新增 （8.15日）

Sheet 孤儿
A1: 西岔镇2025年9月份孤儿基本生活费发放表
A2: 填报单位：西岔镇人民政府 | D2: 填报时间：2025年8月22日
A3: 序号 | B3: 姓名 | C3: 开户人姓名 | D3: 人数 | E3: 发放标准 (元/月) | F3: 9月发放金额（元） | G3: 备注
A4: 1 | B4: 刘嘉荣 | C4: 刘张忠 | D4: 1 | E4: 1253 | F4: 1253
A5: 合计 | D5: =SUM(D4:D4) -> 1 | F5: 1253
